Workbook

Sheet 권별 진도
A1: 전주대 자체입력 권별 진도표
J2: 2013.12.09
A3: 권수 | B3: 쪽수 | C3: 분량 | D3: 입력자 | E3: v1 작업량 | F3: v1 잔여량 | G3: v2 검수범위 | H3: v2 1차검수 | I3: v2 2차검수 | K3: 비고
A4: 26 | B4: 1-273 | C4: =273-1 -> 272 | D4: 심경순 | E4: - | G4: 좌동 | H4: 이혜령
B5: 277-596 | C5: =534-277 -> 257 | D5: 이혜령 | E5: -
B6: 597-888 | C6: =888-597 -> 291 | D6: 김정화 | E6: - | G6: 좌동 | H6: 이혜령
A7: 27 | B7: 3-121 | C7: =266-3 -> 263 | D7: 송정현 | E7: - | G7: 좌동 | H7: 이혜령
B8: 122-266 | C8: 148 | D8: 김정화 | E8: 148
B9: 267-386 | C9: =386-267 -> 119 | D9: 김가희 | E9: -
B10: 387-572 | C10: =572-387 -> 185 | D10: 김유빈 | E10: - | F10: -
B11: 573-584 | C11: =584-573 -> 11 | D11: 김가희 | E11: -
B12: 585-724 | C12: =724-585 -> 139 | D12: 안성은 | E12: - | F12: -
B13: 725-852 | C13: =852-725 -> 127 | D13: 김가희 | E13: - | F13: -
B14: 853-860 | C14: =860-853 -> 7 | D14: 조수연 | E14: -
B15: 861-878 | C15: =878-861 -> 17 | D15: 조수연 | E15: - | F15: -
B16: 879-920 | C16: =920-879 -> 41 | D16: 김정화 | E16: -
B17: 921-994 | C17: =994-921 -> 73 | D17: 김정화 | E17: -
A18: 28 | B18: 3-52 | C18: =52-3 -> 49 | D18: 심경순 | E18: - | G18: 좌동 | H18: 이혜령
B19: 53-102 | C19: =102-53 -> 49 | D19: 이혜령 | E19: -
B20: 103-154 | C20: =154-103 -> 51 | D20: 김정화 | E20: - | G20: 좌동 | H20: 이혜령
B21: 155-200 | C21: =200-155 -> 45 | D21: 송정현 | E21: - | G21: 좌동
B22: 205-255 | C22: =255-205 -> 50 | D22: 김가희 | E22: - | G22: 좌동 | H22: 심경순 | I22: 김정화 | J22: 이혜령 | K22: 2013-05-05
B23: 256-305 | C23: =305-256 -> 49 | D23: 김유빈 | E23: - | G23: 좌동 | H23: 송정현 | I23: 문경득 | J23: 이혜령 | K23: 2013-09-25
B24: 306-357 | C24: =357-306 -> 51 | D24: 안성은 | E24: - | G24: 좌동 | H24: 송정현 | I24: 문경득 | J24: 이혜령 | K24: 2013-04-12
B25: 358-618 | C25: =618-358 -> 260 | D25: 조수연 | E25: - | G25: 358-394 | H25: 이혜령 | K25: 2013-05-06
B26: 619-637 | C26: =637-619 -> 18 | D26: 김가희 | E26: - | G26: 좌동 | H26: 심경순 | I26: 김정화 | J26: 이혜령 | K26: 2013-04-09
B27: 639-669 | C27: =669-639 -> 30 | D27: 김유빈 | E27: - | G27: 좌동 | H27: 심경순 | I27: 김정화 | J27: 이혜령 | K27: 2013-05-08
B28: 673-836 | C28: =836-673 -> 163 | D28: 안성은 | E28: - | G28: 673-723 | H28: 심경순 | I28: 김정화 | J28: 이혜령 | K28: 2013-05-27
G29: 724-774 | H29: 송정현 | I29: 문경득 | J29: 이혜령 | K29: 2013-05-27
G30: 775-836 | H30: 심경순 | I30: 김정화 | J30: 이혜령 | K30: 2013-05-30
B31: 837-857 | C31: =857-837 -> 20 | D31: 김가희 | E31: - | G31: 837-857 | H31: 심경순 | I31: 김정화 | J31: 이혜령 | K31: 2013-07-17
B32: 859-928 | C32: =928-859 -> 69 | D32: 김유빈 | E32: - | G32: 859-876 | H32: 심경순 | I32: 김정화 | J32: 이혜령 | K32: 2013-07-14
G33: 877-928 | H33: 송정현 | I33: 문경득 | J33: 이혜령 | K33: 2013-05-29
B34: 929-948 | C34: =948-929 -> 19 | D34: 김가희 | E34: - | G34: 928-948 | H34: 심경순 | I34: 김정화 | J34: 이혜령 | K34: 2013-07-17
A35: 29 | B35: 1-34 | C35: 34 | D35: 문경득 | E35: -
B36: 35-134 | C36: 100 | D36: 김가희 | E36: - | F36: -
B37: 135-250 | C37: 116 | D37: 김유빈 | E37: - | F37: -
B38: 251-311 | C38: 61 | D38: 안성은 | E38: - | F38: -
B39: 312-428 | C39: 117 | D39: 조수연 | F39: -
B40: 429-693 | C40: 265 | D40: 심경순 | E40: - | F40: -
B41: 694-856 | C41: 163 | D41: 송정현 | E41: 52 | F41: =C41-E41 -> 111
A42: 30 | B42: 3-104 | C42: 102 | D42: 송정현 | F42: 102
B43: 105-527 | C43: 423 | D43: 문경득 | E43: 243 | F43: 180
B44: 528-875 | C44: 348 | D44: 김정화 | F44: 348

Sheet 태깅
A1: 전주대 태깅 권별 진도표
J2: 2013.12.09
A3: 권수 | B3: 영인본 | D3: 잔여량 | E3: 번역본 | G3: 입력자 | H3: v3 입력자 | I3: v3 입력량 | J3: v3 입력범위 | K3: 비고
B4: 쪽수 | C4: 분량 | E4: 쪽수 | F4: 분량
A5: 1 | B5: 1-234 | C5: 234 | D5: 0 | E5: 3-269 | F5: 267 | G5: 심경순 | H5: 김가희 | I5: 1-36 | J5: 36 | K5: 9.29
H6: 김유빈 | I6: 37-64 | J6: 28 | K6: 9.21
H7: 김가희 | I7: 65~100 | J7: 36 | K7: 9.29
H8: 김유빈 | I8: 101-160 | J8: 60 | K8: 10.13
H9: 조수연 | I9: 161-200 | J9: 40 | K9: 10.14
H10: 김가희 | I10: 201-234 | J10: 34 | K10: 10.26
B11: 235-358 | C11: 124 | D11: 0 | E11: 269-469 | F11: 201 | G11: 심경순 | H11: 김가희 | I11: 235-244 | J11: 10 | K11: 8.28
H12: 김유빈 | I12: 245-254 | J12: 10 | K12: 8.29
H13: 안성은 | I13: 255-264 | J13: 10 | K13: 8.29
H14: 조수연 | I14: 265-274 | J14: 10 | K14: 8.29
H15: 김가희 | I15: 275-288 | J15: 14 | K15: 9.04
H16: 김유빈 | I16: 289-302 | J16: 14 | K16: 9.01
H17: 안성은 | I17: 316-303 | J17: 14 | K17: 9.01
H18: 조수연 | I18: 317-330 | J18: 14 | K18: 9.09
H19: 조수연 | I19: 334-340 | J19: 7 | K19: 9.16
H20: 안성은 | I20: 341-358 | J20: 18 | K20: 9.15
B21: 359-576 | C21: 218 | D21: 0 | E21: 469-733 | F21: 265 | G21: 김정화 | H21: 김유빈 | I21: 363-370 | J21: 8 | K21: 9.21
H22: 안성은 | I22: 371-406 | J22: 36 | K22: 9.2
H23: 조수연 | I23: 407-442 | J23: 36 | K23: 9.22
H24: 김가희 | I24: 443-478 | J24: 35 | K24: 9.29
H25: 김유빈 | I25: 479-550 | J25: 72 | K25: 9.29
H26: 안성은 | I26: 551-576 | J26: 26 | K26: 9.29
B27: 594-797 | C27: 224 | D27: 0 | E27: 733-931 | F27: 199 | G27: 송정현 | H27: 김가희 | I27: 587-626 | J27: 40 | K27: 9.13
H28: 김유빈 | I28: 627-666 | J28: 40 | K28: 9.1
H29: 조수연 | I29: 667-686 | J29: 20 | K29: 9.16
H30: 안성은 | I30: 687-726 | J30: 40 | K30: 9.29
H31: 조수연 | I31: 727-797 | J31: 71 | K31: 9.29
A32: 2 | B32: 3-386 | C32: 384 | D32: 0 | E32: 3-345 | F32: 343 | G32: 송정현 | H32: 김가희 | I32: 1-60 | J32: 60 | K32: 10.9
H33: 안성은 | I33: 61-120 | J33: 60 | K33: 10.7
H34: 조수연 | I34: 121-140 | J34: 20 | K34: 10.14
H35: 김유빈 | I35: 141-186 | J35: 73 | K35: 10.26
H36: 김유빈 | I36: 187-259 | J36: 73 | K36: 11.04
H37: 김가희 | I37: 260-278 | J37: 19 | K37: 11.05
H38: 안성은 | I38: 278-334 | J38: 57 | K38: 11.17
H39: 조수연 | I39: 335-386 | J39: 54 | K39: 11.17
B40: 387-892 | C40: 506 | D40: 92 | E40: 345-784 | F40: 440 | G40: 김정화 | H40: 조수연 | I40: 387-449 | J40: 63 | K40: 10.27
H41: 김가희 | I41: 450-483 | J41: 34 | K41: 10.26
H42: 김유빈 | I42: 485-514 | J42: 30 | K42: 11.09
H43: 김가희 | I43: 515-545 | J43: 31 | K43: 11.04
H44: 안성은 | I44: 546-627 | J44: 82 | K44: 11.24
H45: 조수연 | I45: 628-648 | J45: 21 | K45: 12.02
H46: 안성은 | I46: 649-699 | J46: 51 | K46: 11.29
H47: 조수연 | I47: 700-749 | J47: 50 | K47: 12.09
H48: 안성은 | I48: 750-800 | J48: 51 | K48: 120.2
A49: 3 | B49: 3-22 | C49: 19 | D49: 19 | E49: 3-17 | F49: 16 | G49: 김정화
B50: 23-220 | C50: 198 | D50: 0 | E50: 17-198 | F50: 182 | G50: 심경순 | H50: 안성은 | I50: 23-83 | J50: 61 | K50: 10.26
H51: 김유빈 | I51: 84-102 | J51: 19 | K51: 10.26
H52: 조수연 | I52: 103-178 | J52: 76 | K52: 11.03
H53: 김가희 | I53: 179-220 | J53: =220-179 -> 41 | K53: 11.09
B54: 221-952 | C54: 732 | D54: 409 | E54: 198-817 | F54: 620 | G54: 문경득 | H54: 안성은 | I54: 221-290 | J54: =290-221 -> 69 | K54: 11.03
H55: 김가희 | I55: 291-306 | J55: =306-291 -> 15 | K55: 11.05
H56: 조수연 | I56: 308-368 | J56: =368-308 -> 60 | K56: 11.24
H57: 김유빈 | I57: 369-423 | J57: =423-369 -> 54 | K57: 12.01
H58: 김가희 | I58: 424-473 | J58: 50 | K58: 12.08
H59: 김유빈 | I59: 474-543 | J59: 70 | K59: 12.04
A61: 4 | B61: 1-200 | C61: 200 | D61: 0 | E61: 3-189 | F61: 186 | G61: 심경순 | H61: 김유빈 | I61: 1-100 | J61: 100 | K61: 11.23
H62: 김가희 | I62: 101-200 | J62: 100 | K62: 11.21
B63: 201-424 | C63: 224 | D63: 224 | E63: 189-351 | F63: 162 | G63: 송정현
B64: 425-704 | C64: 280 | D64: 280 | E64: 351-579 | F64: 228 | G64: 김정화
B65: 705-976 | C65: 272 | D65: 272 | E65: 579-837 | F65: 258 | G65: 문경득

Sheet 일자별(태깅)
A1: 전주대 태깅 일자별 진도표
A3: 권수 | B3: 영인본 | D3: 잔여량 | E3: 번역본 | G3: 입력자 | I3: 입력량
B4: 쪽수 | C4: 분량 | E4: 쪽수 | F4: 분량 | I4: 9월 23일 | J4: 9월 30일 | K4: 10월 7일 | L4: 10월 14일
A5: 1 | B5: 1-100 | C5: 100 | D5: 0 | E5: 3-269 | F5: 267 | G5: 심경순 | I5: 36 | J5: - | K5: - | L5: - | M5: - | N5: - | O5: -
B6: 101-234 | C6: 134 | D6: 0 | E6: 3-269 | F6: 267 | G6: 심경순 | I6: 문경득 0 | J6: 문->심 | K6: 100 | L6: 34
B7: 235-358 | C7: 124 | D7: 0 | E7: 269-469 | F7: 201 | G7: 심경순 | I7: - | J7: - | K7: - | L7: - | M7: - | N7: - | O7: -
B8: 359-576 | C8: 218 | D8: 0 | E8: 469-733 | F8: 265 | G8: 김정화 | I8: 138 | J8: - | K8: - | L8: - | M8: - | N8: - | O8: -
B9: 594-797 | C9: 224 | D9: 0 | E9: 733-931 | F9: 199 | G9: 송정현 | I9: 112 | J9: - | K9: - | L9: - | M9: - | N9: - | O9: -
A11: 권수 | B11: 영인본 | D11: 잔여량 | E11: 번역본 | G11: 입력자 | I11: 입력량
B12: 쪽수 | C12: 분량 | E12: 쪽수 | F12: 분량 | I12: 10월 7일 | J12: 10월 14일 | K12: 10월21일 | L12: 10월 28일 | M12: 11월 4일 | N12: 11월11일 | O12: 11월 18일 | P12: 11월 25일 | Q12: 12월2일 | R12: 12월4일
A13: 2 | B13: 3-386 | C13: 384 | D13: 0 | E13: 3-345 | F13: 343 | G13: 송정현 | I13: 140 | J13: 43 | K13: 休 | L13: 93 | N13: 103 | O13: - | P13: - | Q13: - | R13: -
A14: 2 | B14: 387-892 | C14: 506 | D14: 92 | E14: 345-784 | F14: 440 | G14: 김정화 | I14: - | J14: 107 | K14: 休 | L14: - | O14: 104 | P14: 51 | Q14: 50 | R14: 92
A16: 권수 | B16: 영인본 | D16: 잔여량 | E16: 번역본 | G16: 입력자 | I16: 입력량
B17: 쪽수 | C17: 분량 | E17: 쪽수 | F17: 분량 | I17: 10월 7일 | J17: 10월14일 | K17: 10월21일 | L17: 10월 28일 | M17: 11월 4일 | N17: 11월11일 | O17: 11월 18일 | P17: 11월 25일 | Q17: 12월2일 | R17: 12월4일
A18: 3 | B18: 3-22 | C18: 19 | D18: 19 | E18: 3-17 | F18: 16 | G18: 김정화 | R18: 19
B19: 23-220 | C19: 198 | D19: 0 | E19: 17-198 | F19: 182 | G19: 심경순 | J19: 79 | K19: 休 | L19: 117 | M19: - | N19: - | O19: - | P19: - | Q19: -
B20: 221-952 | C20: 732 | D20: 409 | E20: 198-817 | F20: 620 | G20: 문경득 | I20: - | J20: - | K20: 休 | L20: 86 | M20: - | O20: 60 | P20: 54
A22: 권수 | B22: 영인본 | D22: 잔여량 | E22: 입력본 | G22: 입력자 | I22: 입력량
B23: 쪽수 | C23: 분량 | E23: 쪽수 | F23: 분량 | I23: 11월 25일 | J23: 12월 2일 | K23: 12월 4일
A24: 4 | B24: 1-200 | C24: 200 | D24: 0 | E24: 3-189 | F24: 186 | G24: 심경순 | I24: 200 | J24: - | K24: - | L24: - | M24: - | N24: - | O24: -
B25: 201-424 | C25: 224 | D25: 224 | E25: 189-351 | F25: 162 | G25: 송정현
B26: 425-704 | C26: 280 | D26: 280 | E26: 351-579 | F26: 228 | G26: 김정화
B27: 705-976 | C27: 272 | D27: 272 | E27: 579-837 | F27: 258 | G27: 문경득
A30: 권수 | B30: 영인본 | E30: 입력본 | F30: 잔여량 | G30: 입력자 | I30: 입력량
B31: 쪽수 | C31: 글자수 | E31: 쪽수 | I31: 12월 16일
A32: 9 | B32: 1-918 | C32: 228889 | G32: 김정화
A34: 권수 | B34: 영인본 | E34: 입력본 | F34: 잔여량 | G34: 입력자 | I34: 입력량
B35: 쪽수 | C35: 글자수 | E35: 쪽수 | I35: 12월 16일
A36: 10 | B36: 1-915 | C36: 236637 | G36: 김경순
A39: 권수 | B39: 영인본 | E39: 입력본 | F39: 잔여량 | G39: 입력자 | I39: 입력량
B40: 쪽수 | C40: 글자수 | E40: 쪽수 | I40: 12월 16일
A41: 12 | B41: 1-798 | C41: 179835 | G41: 문경득
A43: 권수 | B43: 영인본 | E43: 입력본 | F43: 잔여량 | G43: 입력자 | I43: 입력량
B44: 쪽수 | C44: 글자수 | E44: 쪽수 | I44: 12월 16일
A45: 13 | B45: 1-856 | C45: 198640 | G45: 송정현
A48: 권수 | B48: 영인본 | E48: 입력본 | F48: 잔여량 | G48: 입력자 | I48: 입력량
B49: 쪽수 | C49: 글자수 | E49: 쪽수
A50: 15 | B50: 1-999 | C50: 265366

Sheet 일자별(검수)
A1: 전주대 검수 일자별 진도표
A4: 권수 | B4: 영인본 | D4: 잔여량 | E4: 번역본 | G4: 검수자 | I4: 입력량
B5: 쪽수 | C5: 분량 | E5: 쪽수 | F5: 분량 | I5: 9월 23일
A6: 26 | J6: - | K6: - | L6: - | M6: - | N6: - | O6: -
A8: 권수 | B8: 영인본 | D8: 잔여량 | E8: 번역본 | G8: 검수자 | I8: 입력량
B9: 쪽수 | C9: 분량 | E9: 쪽수 | F9: 분량 | I9: 9월 23일
A10: 27 | J10: - | K10: - | L10: - | M10: - | N10: - | O10: -
A12: 권수 | B12: 영인본 | D12: 잔여량 | E12: 번역본 | G12: 검수자 | I12: 입력량
B13: 쪽수 | C13: 분량 | E13: 쪽수 | F13: 분량 | I13: 9월 23일
A14: 28 | J14: - | K14: - | L14: - | M14: - | N14: - | O14: -
A16: 권수 | B16: 영인본 | D16: 잔여량 | E16: 번역본 | G16: 검수자 | I16: 입력량
B17: 쪽수 | C17: 분량 | E17: 쪽수 | F17: 분량 | I17: 9월 23일
A18: 29 | J18: - | K18: - | L18: - | M18: - | N18: - | O18: -
A20: 권수 | B20: 영인본 | D20: 잔여량 | E20: 번역본 | G20: 검수자 | I20: 입력량
B21: 쪽수 | C21: 분량 | E21: 쪽수 | F21: 분량 | I21: 9월 23일
A22: 30 | J22: - | K22: - | L22: - | M22: - | N22: - | O22: -

Sheet Sheet1
A3: 권수 | B3: 영인본 | D3: 잔여량 | E3: 번역본 | G3: 입력자
B4: 쪽수 | C4: 분량 | E4: 쪽수 | F4: 분량
A5: 2권 | B5: 3-386 | C5: 384 | E5: 3-345 | F5: 343 | G5: 송정현
B6: 387-892 | C6: 506 | E6: 345-784 | F6: 440 | G6: 김정화
A7: 3권 | B7: 3-22 | C7: 19 | E7: 3-17 | F7: 16 | G7: 김정화
B8: 23-220 | C8: 198 | E8: 17-198 | F8: 182 | G8: 심경순
B9: 221-952 | C9: 732 | E9: 198-817 | F9: 620 | G9: 문경득
